[Event "GER-ch Youth U14 2019"]
[Site "Willingen"]
[Date "2019.06.12"]
[Round "5.1"]
[White "Colbow, Collin"]
[Black "Krastev, Alexander"]
[Result "0-1"]
[ECO "B35"]
[WhiteElo "2169"]
[BlackElo "2344"]
[Annotator "NA RC"]
[PlyCount "93"]
[EventDate "2019.06.07"]
[EventType "swiss"]
[EventRounds "9"]
[EventCountry "GER"]
[SourceTitle "playchess.com"]
[Source "ChessBase"]
[SourceQuality "1"]
[TimeControl "40/5400+30:1800+30"]

1. e4 {[%emt 0:00:00]} c5 {[%emt 0:00:00]} 2. Nf3 {[%emt 0:00:27]} Nc6 {[%emt 0:00:00]} 3. d4 {[%emt 0:00:07]} cxd4 {[%emt 0:00:00]} 4. Nxd4 {[%emt 0:00:05]} g6 {[%emt 0:00:00]} 5. Nc3 {[%emt 0:00:36]} Bg7 {[%emt 0:00:00]} 6. Be3 {[%emt 0:00:09]} Nf6 {[%emt 0:00:02]} 7. Bc4 {[%emt 0:01:03]} O-O {[%emt 0:00:06]} 8. Bb3 {[%emt 0:00:03]} Re8 {[%emt 0:00:17]} 9. O-O {[%emt 0:04:21]} d6 {[%emt 0:00:07]} 10. h3 {[%emt 0:00:45]} Na5 {[%emt 0:00:34]} 11. Qf3 {[%emt 0:09:33]} b6 {[%emt 0:25:24]} 12. Rfd1 {[%emt 0:19:52]} Bb7 {[%emt 0:06:53]} 13. Bg5 {[%emt 0:06:30]} Nxb3 {[%emt 0:24:44]} 14. axb3 {[%emt 0:04:12]} h6 {[%emt 0:06:51]} 15. Bxf6 {[%emt 0:02:11]} Bxf6 {[%emt 0:00:20]} 16. Nd5 {[%emt 0:01:47]} Bh8 {[%emt 0:07:28]} 17. Nb5 {[%emt 0:04:20]} a6 {[%emt 0:01:12]} 18. Nbc3 {[%emt 0:07:05]} Bg7 {[%emt 0:07:04]} 19. Qe3 {[%emt 0:02:07]} b5 {[%emt 0:00:06]} 20. b4 {[%emt 0:05:54]} e6 {[%emt 0:04:15]} 21. Nf4 {[%emt 0:03:05]} Qc7 {[%emt 0:00:10]} 22. Rd3 {[%emt 0:03:21]} Rac8 {[%emt 0:01:50]} 23. Qd2 {[%emt 0:02:21]} Qb8 {[%emt 0:01:54]} 24. Nfe2 {[%emt 0:04:57]} Bf8 {[%emt 0:02:50]} 25. b3 {[%emt 0:01:35]} Rc7 {[%emt 0:01:16]} 26. Rd1 {[%emt 0:01:35]} Rec8 {[%emt 0:01:41]} 27. Qe3 {[%emt 0:00:43]} Bg7 {[%emt 0:01:35]} 28. Nb1 {[%emt 0:07:16]} Bf8 {[%emt 0:06:09]} 29. Nbc3 {[%emt 0:01:18]} Ba8 {[%emt 0:00:48]} 30. f3 {[%emt 0:03:07]} Qa7 {[%emt 0:00:37]} 31. Kf2 {[%emt 0:01:56]} Qxe3+ {[%emt 0:00:21]} 32. Kxe3 {[%emt 0:00:28]} Bg7 {[%emt 0:00:18]} 33. Kd2 {[%emt 0:00:30]} Kf8 {[%emt 0:00:25]} 34. Rc1 {[%emt 0:00:20]} h5 {[%emt 0:00:51]} 35. Nd1 {[%emt 0:01:29]} d5 {[%emt 0:00:38]} 36. exd5 {[%emt 0:00:36]} Bxd5 {[%emt 0:00:04]} 37. Ne3 {[%emt 0:01:04]} Bh6 {[%emt 0:00:12]} 38. f4 {[%emt 0:01:07]} Be4 {[%emt 0:00:35]} 39. Rd4 {[%emt 0:00:32]} Bb7 {[%emt 0:00:40]} 40. g4 {[%emt 0:01:01]} hxg4 {[%emt 0:01:00]} 41. Nxg4 {[%emt 0:06:42]} Bg7 {[%emt 0:00:27]} 42. Ne5 {[%emt 0:00:21]} g5 {[%emt 0:05:12]} 43. Rd3 {[%emt 0:15:01]} gxf4 {[%emt 0:01:08]} 44. Nd7+ {[%emt 0:00:47]} Ke7 {[%emt 0:00:26]} 45. Nc5 {[%emt 0:03:40]} f3 {[%emt 0:01:20]} 46. Nd4 {[%emt 0:02:03]} Bh6+ {[%emt 0:00:24]} 47. Re3 {[%emt 0:00:48] normal} 0-1

[Event "GER-ch Youth U14 2019"]
[Site "Willingen"]
[Date "2019.06.12"]
[Round "5.2"]
[White "Bethke, Richard"]
[Black "Pubantz, Jan"]
[Result "1-0"]
[ECO "B12"]
[WhiteElo "2246"]
[BlackElo "2192"]
[Annotator "NA"]
[PlyCount "72"]
[EventDate "2019.06.07"]
[EventType "swiss"]
[EventRounds "9"]
[EventCountry "GER"]
[SourceTitle "playchess.com"]
[Source "ChessBase"]
[SourceQuality "1"]
[TimeControl "40/5400+30:1800+30"]

1. e4 {[%emt 0:00:00]} c6 {[%emt 0:00:00]} 2. d4 {[%emt 0:00:00]} d5 {[%emt 0:00:00]} 3. e5 {[%emt 0:00:01]} Bf5 {[%emt 0:00:23]} 4. h4 {[%emt 0:00:14]} h5 {[%emt 0:00:51]} 5. Bd3 {[%emt 0:00:14]} Qd7 {[%emt 0:03:55]} 6. Ne2 {[%emt 0:05:46]} Bxd3 {[%emt 0:03:42]} 7. Qxd3 {[%emt 0:00:13]} e6 {[%emt 0:00:21]} 8. Nbc3 {[%emt 0:02:07]} c5 {[%emt 0:07:20]} 9. dxc5 {[%emt 0:01:10]} Nc6 {[%emt 0:12:13]} 10. Nd4 {[%emt 0:05:48]} Bxc5 {[%emt 0:06:56]} 11. Nxc6 {[%emt 0:02:42]} bxc6 {[%emt 0:00:43]} 12. Na4 {[%emt 0:02:56]} Be7 {[%emt 0:07:05]} 13. Be3 {[%emt 0:15:14]} Nh6 {[%emt 0:02:06]} 14. f3 {[%emt 0:08:59]} Qd8 {[%emt 0:06:12]} 15. Qa6 {[%emt 0:05:15]} Qc8 {[%emt 0:12:19]} 16. Qxc8+ {[%emt 0:02:52]} Rxc8 {[%emt 0:00:05]} 17. Bc5 {[%emt 0:00:59]} Rb8 {[%emt 0:04:06]} 18. Kd2 {[%emt 0:15:17]} Rb5 {[%emt 0:04:30]} 19. Bf2 {[%emt 0:20:20]} Kd7 {[%emt 0:07:48]} 20. b3 {[%emt 0:01:04]} Nf5 {[%emt 0:01:19]} 21. Bxa7 {[%emt 0:02:17]} c5 {[%emt 0:07:40]} 22. Rac1 {[%emt 0:02:43]} Kc6 {[%emt 0:03:55]} 23. c4 {[%emt 0:04:22]} dxc4 {[%emt 0:04:23]} 24. Rxc4 {[%emt 0:00:23]} Rd8+ {[%emt 0:00:44]} 25. Kc3 {[%emt 0:01:00]} Ra8 {[%emt 0:02:26]} 26. Bxc5 {[%emt 0:00:27]} Bxc5 {[%emt 0:00:11]} 27. Rd1 {[%emt 0:00:33]} Raa5 {[%emt 0:01:36]} 28. Rd8 {[%emt 0:00:06]} Kb7 {[%emt 0:00:35]} 29. Rd7+ {[%emt 0:00:03]} Ka6 {[%emt 0:00:25]} 30. Rxf7 {[%emt 0:00:20]} Bb6 31. Rc8 {[%emt 0:01:02]} Rc5+ {[%emt 0:01:07]} 32. Nxc5+ {[%emt 0:00:09]} Rxc5+ {[%emt 0:00:05]} 33. Rxc5 {[%emt 0:00:05]} Bxc5 {[%emt 0:00:03]} 34. g4 {[%emt 0:00:34]} hxg4 {[%emt 0:01:15]} 35. fxg4 {[%emt 0:00:05]} Nxh4 {[%emt 0:00:07]} 36. Rxg7 {[%emt 0:00:06]} Nf3 {[%emt 0:01:00] normal} 1-0

[Event "GER-ch Youth U14 2019"]
[Site "Willingen"]
[Date "2019.06.12"]
[Round "5.3"]
[White "Weihrauch, Jakob"]
[Black "Eilenberg, Jonas"]
[Result "1/2-1/2"]
[ECO "B33"]
[WhiteElo "2158"]
[BlackElo "1934"]
[Annotator "NA"]
[PlyCount "56"]
[EventDate "2019.06.07"]
[EventType "swiss"]
[EventRounds "9"]
[EventCountry "GER"]
[SourceTitle "playchess.com"]
[Source "ChessBase"]
[SourceQuality "1"]
[TimeControl "40/5400+30:1800+30"]

1. e4 {[%emt 0:00:00]} c5 {[%emt 0:00:00]} 2. Nf3 {[%emt 0:00:00]} Nc6 {[%emt 0:00:00]} 3. d4 {[%emt 0:00:40]} cxd4 {[%emt 0:00:03]} 4. Nxd4 {[%emt 0:00:06]} Nf6 {[%emt 0:00:11]} 5. Nc3 {[%emt 0:01:23]} e5 {[%emt 0:00:18]} 6. Ndb5 {[%emt 0:00:17]} d6 {[%emt 0:00:28]} 7. Bg5 {[%emt 0:00:57]} a6 {[%emt 0:00:30]} 8. Na3 {[%emt 0:00:01]} b5 {[%emt 0:00:08]} 9. Nd5 {[%emt 0:00:15]} Be7 {[%emt 0:00:10]} 10. Bxf6 {[%emt 0:00:10]} Bxf6 {[%emt 0:00:12]} 11. c3 {[%emt 0:00:15]} O-O {[%emt 0:01:12]} 12. Nc2 {[%emt 0:02:15]} Rb8 {[%emt 0:00:22]} 13. Bd3 {[%emt 0:03:25]} Be6 {[%emt 0:06:01]} 14. Nce3 {[%emt 0:03:43]} Bg5 {[%emt 0:02:37]} 15. O-O {[%emt 0:03:34]} Ne7 {[%emt 0:07:24]} 16. Nxe7+ {[%emt 0:11:40]} Qxe7 {[%emt 0:04:22]} 17. Qe2 {[%emt 0:00:30]} g6 {[%emt 0:14:16]} 18. a4 {[%emt 0:07:40]} f5 {[%emt 0:02:55]} 19. exf5 {[%emt 0:07:30]} gxf5 {[%emt 0:00:14]} 20. f4 {[%emt 0:05:45]} Bxf4 {[%emt 0:05:07]} 21. axb5 {[%emt 0:07:18]} Qa7 {[%emt 0:05:40]} 22. Rfe1 {[%emt 0:02:46]} Qxe3+ {[%emt 0:00:45]} 23. Qxe3 {[%emt 0:00:08]} Bxe3+ {[%emt 0:00:02]} 24. Rxe3 {[%emt 0:00:09]} f4 {[%emt 0:02:24]} 25. Ree1 {[%emt 0:03:10]} axb5 {[%emt 0:00:56]} 26. Ra6 {[%emt 0:01:13]} Rfd8 {[%emt 0:02:17]} 27. g3 {[%emt 0:01:05]} fxg3 {[%emt 0:00:53]} 28. hxg3 {[%emt 0:00:56]} Rd7 {[%emt 0:03:26] normal} 1/2-1/2

[Event "GER-ch Youth U14 2019"]
[Site "Willingen"]
[Date "2019.06.12"]
[Round "5.4"]
[White "Musiolik, David"]
[Black "von Krosigk, Florian"]
[Result "0-1"]
[ECO "B92"]
[WhiteElo "2132"]
[BlackElo "1926"]
[Annotator "NA"]
[PlyCount "93"]
[EventDate "2019.06.07"]
[EventType "swiss"]
[EventRounds "9"]
[EventCountry "GER"]
[SourceTitle "playchess.com"]
[Source "ChessBase"]
[SourceQuality "1"]
[TimeControl "40/5400+30:1800+30"]

1. e4 {[%emt 0:00:00]} c5 {[%emt 0:00:00]} 2. Nf3 {[%emt 0:00:00]} d6 {[%emt 0:00:00]} 3. d4 {[%emt 0:00:00]} cxd4 {[%emt 0:00:00]} 4. Nxd4 {[%emt 0:00:00]} Nf6 {[%emt 0:00:00]} 5. Nc3 {[%emt 0:00:00]} a6 {[%emt 0:00:08]} 6. Be2 {[%emt 0:00:06]} e5 {[%emt 0:01:03]} 7. Nb3 {[%emt 0:00:06]} Be7 {[%emt 0:00:08]} 8. O-O {[%emt 0:00:10]} O-O {[%emt 0:00:09]} 9. Re1 {[%emt 0:00:33]} Be6 {[%emt 0:05:33]} 10. Bf3 {[%emt 0:01:02]} Nc6 {[%emt 0:04:17]} 11. Nd5 {[%emt 0:03:03]} a5 {[%emt 0:10:09]} 12. a4 {[%emt 0:06:31]} Nb4 {[%emt 0:14:55]} 13. Nxb4 {[%emt 0:03:11]} axb4 {[%emt 0:00:12]} 14. Bd2 {[%emt 0:00:54]} d5 {[%emt 0:06:17]} 15. Bg5 {[%emt 0:10:55]} Nxe4 {[%emt 0:16:57]} 16. Bxe7 {[%emt 0:01:07]} Qxe7 {[%emt 0:02:35]} 17. Bxe4 {[%emt 0:00:11]} dxe4 {[%emt 0:00:04]} 18. Rxe4 {[%emt 0:00:12]} Qc7 {[%emt 0:04:26]} 19. Rxb4 {[%emt 0:02:56]} Rac8 {[%emt 0:01:32]} 20. c3 {[%emt 0:01:33]} Rfd8 {[%emt 0:00:38]} 21. Qf3 {[%emt 0:02:18]} Bd5 {[%emt 0:00:35]} 22. Qe3 {[%emt 0:00:55]} Qd6 {[%emt 0:02:26]} 23. f3 {[%emt 0:06:17]} f6 {[%emt 0:08:33]} 24. Nd2 {[%emt 0:02:44]} Bc6 {[%emt 0:13:20]} 25. Nc4 {[%emt 0:01:20]} Qe6 {[%emt 0:01:55]} 26. a5 {[%emt 0:05:35]} Rc7 {[%emt 0:01:24]} 27. Nb6 {[%emt 0:01:01]} f5 {[%emt 0:00:43]} 28. Re1 {[%emt 0:04:16]} e4 {[%emt 0:00:42]} 29. Rd4 {[%emt 0:00:13]} Rf8 {[%emt 0:01:33]} 30. Qf4 {[%emt 0:01:04]} Rcf7 {[%emt 0:01:02]} 31. Nc4 {[%emt 0:00:31]} g5 {[%emt 0:01:40]} 32. Qd6 {[%emt 0:01:11]} Qe8 {[%emt 0:00:44]} 33. Qc5 {[%emt 0:01:08]} Rc7 {[%emt 0:02:03]} 34. b4 {[%emt 0:08:36]} Qf7 {[%emt 0:00:42]} 35. Nd6 {[%emt 0:02:51]} Qg7 {[%emt 0:00:22]} 36. b5 {[%emt 0:03:37]} Be8 {[%emt 0:00:40]} 37. Qd5+ {[%emt 0:06:25]} Bf7 {[%emt 0:00:27]} 38. Qxf5 {[%emt 0:00:20]} Rxc3 {[%emt 0:00:32]} 39. Qxe4 {[%emt 0:01:04]} Ra3 {[%emt 0:00:23]} 40. Nf5 {[%emt 0:04:09]} Qf6 {[%emt 0:00:32]} 41. Rd6 {[%emt 0:33:42]} Qc3 {[%emt 0:00:39]} 42. a6 {[%emt 0:00:00]} bxa6 {[%emt 0:12:45]} 43. bxa6 {[%emt 0:00:00]} Ra1 {[%emt 0:01:41]} 44. Ne7+ {[%emt 0:00:00]} Kg7 {[%emt 0:03:00]} 45. Rxa1 {[%emt 0:00:00]} Qxa1+ {[%emt 0:00:01]} 46. Kf2 {[%emt 0:00:00]} Re8 {[%emt 0:01:41] normal} 47. Kg3 {[%emt 0:00:00] normal} 0-1

[Event "GER-ch Youth U14 2019"]
[Site "Willingen"]
[Date "2019.06.12"]
[Round "5.5"]
[White "Lutz, Ruben"]
[Black "Elsner, Robert"]
[Result "1-0"]
[ECO "A45"]
[WhiteElo "2055"]
[BlackElo "1745"]
[Annotator "NA"]
[PlyCount "53"]
[EventDate "2019.06.07"]
[EventType "swiss"]
[EventRounds "9"]
[EventCountry "GER"]
[SourceTitle "playchess.com"]
[Source "ChessBase"]
[SourceQuality "1"]
[TimeControl "40/5400+30:1800+30"]

1. d4 {[%emt 0:00:00]} Nf6 {[%emt 0:00:00]} 2. Bf4 {[%emt 0:00:00]} g6 {[%emt 0:00:29]} 3. Nc3 {[%emt 0:00:07]} Bg7 {[%emt 0:00:32]} 4. e4 {[%emt 0:00:14]} d6 {[%emt 0:00:03]} 5. Qd2 {[%emt 0:00:11]} Nbd7 {[%emt 0:00:10]} 6. O-O-O {[%emt 0:01:40]} O-O {[%emt 0:07:07]} 7. Nf3 {[%emt 0:00:23]} c5 {[%emt 0:09:29]} 8. dxc5 {[%emt 0:00:55]} Nxc5 {[%emt 0:03:01]} 9. e5 {[%emt 0:00:14]} Nfe4 {[%emt 0:00:30]} 10. Nxe4 {[%emt 0:00:06]} Nxe4 {[%emt 0:00:02]} 11. Qe3 {[%emt 0:00:07]} d5 {[%emt 0:00:32]} 12. Kb1 {[%emt 0:00:41]} f6 {[%emt 0:23:04]} 13. Bc4 {[%emt 0:39:12]} e6 {[%emt 0:00:51]} 14. exf6 {[%emt 0:09:41]} Bxf6 {[%emt 0:01:31]} 15. Bd3 {[%emt 0:05:12]} Nd6 {[%emt 0:17:52]} 16. Be5 {[%emt 0:02:29]} Nf5 {[%emt 0:02:45]} 17. Bxf5 {[%emt 0:03:17]} gxf5 {[%emt 0:00:27]} 18. Rhe1 {[%emt 0:00:54]} Bd7 {[%emt 0:01:10]} 19. Bxf6 {[%emt 0:02:01]} Qxf6 {[%emt 0:00:14]} 20. Qe5 {[%emt 0:01:20]} Rae8 {[%emt 0:00:50]} 21. Nd4 {[%emt 0:01:49]} Qxe5 {[%emt 0:00:33]} 22. Rxe5 {[%emt 0:00:07]} b5 {[%emt 0:07:51]} 23. Rd3 {[%emt 0:01:58]} Kf7 {[%emt 0:00:44]} 24. Ra3 {[%emt 0:01:26]} Ra8 {[%emt 0:00:09]} 25. Ra6 {[%emt 0:02:06]} Rfe8 26. c3 {[%emt 0:03:43] normal} Rg8 {[%emt 0:05:55]} 27. g3 {[%emt 0:00:51] normal} 1-0

[Event "GER-ch Youth U14 2019"]
[Site "Willingen"]
[Date "2019.06.12"]
[Round "5.6"]
[White "Roehr, Oliver"]
[Black "Gallasch, Jonas"]
[Result "1/2-1/2"]
[ECO "B12"]
[WhiteElo "1960"]
[BlackElo "2137"]
[Annotator "NA"]
[PlyCount "92"]
[EventDate "2019.06.07"]
[EventType "swiss"]
[EventRounds "9"]
[EventCountry "GER"]
[SourceTitle "playchess.com"]
[Source "ChessBase"]
[SourceQuality "1"]
[TimeControl "40/5400+30:1800+30"]

1. e4 {[%emt 0:00:00]} c6 {[%emt 0:00:00]} 2. d4 {[%emt 0:00:00]} d5 {[%emt 0:00:00]} 3. e5 {[%emt 0:00:00]} Bf5 {[%emt 0:00:12]} 4. h4 {[%emt 0:00:00]} h5 {[%emt 0:00:17]} 5. Bd3 {[%emt 0:00:15]} Bxd3 {[%emt 0:00:20]} 6. Qxd3 {[%emt 0:00:06]} e6 {[%emt 0:00:14]} 7. Bg5 {[%emt 0:00:49]} Qb6 {[%emt 0:00:46]} 8. Nd2 {[%emt 0:01:11]} Ne7 {[%emt 0:03:05]} 9. Ne2 {[%emt 0:09:41]} Nd7 {[%emt 0:01:37]} 10. O-O {[%emt 0:21:39]} c5 {[%emt 0:04:51]} 11. c3 {[%emt 0:02:30]} Nc6 {[%emt 0:11:20]} 12. Nf3 {[%emt 0:04:21]} Rb8 {[%emt 0:05:22]} 13. Nf4 {[%emt 0:09:39]} Be7 {[%emt 0:09:00]} 14. Rfb1 {[%emt 0:20:01]} cxd4 {[%emt 0:02:19]} 15. cxd4 {[%emt 0:02:23]} Bxg5 {[%emt 0:23:34]} 16. hxg5 {[%emt 0:01:16]} Nb4 {[%emt 0:00:14]} 17. Qd2 {[%emt 0:02:01]} g6 {[%emt 0:00:46]} 18. a3 {[%emt 0:01:41]} Nc6 {[%emt 0:00:19]} 19. b4 {[%emt 0:00:59]} Kf8 {[%emt 0:04:20]} 20. b5 {[%emt 0:02:15]} Ne7 {[%emt 0:01:37]} 21. Qb4 {[%emt 0:00:49]} a5 {[%emt 0:03:05]} 22. bxa6 {[%emt 0:01:14]} bxa6 {[%emt 0:00:14]} 23. Qe1 {[%emt 0:03:18]} Qa7 {[%emt 0:00:46]} 24. Rxb8+ {[%emt 0:01:06]} Nxb8 {[%emt 0:00:13]} 25. Nd3 {[%emt 0:06:31]} Nbc6 {[%emt 0:01:15]} 26. Qc3 {[%emt 0:02:21]} Kg7 {[%emt 0:01:28]} 27. Rb1 {[%emt 0:01:44]} Rc8 {[%emt 0:00:43]} 28. Qc5 {[%emt 0:02:34]} Qxc5 {[%emt 0:07:34]} 29. dxc5 {[%emt 0:01:16]} Rb8 {[%emt 0:03:11]} 30. Rxb8 {[%emt 0:00:18]} Nxb8 {[%emt 0:00:05]} 31. Nd4 {[%emt 0:01:33]} Nec6 {[%emt 0:00:37]} 32. Nb3 {[%emt 0:00:48]} Kf8 {[%emt 0:00:52]} 33. f4 {[%emt 0:00:16]} Ke8 {[%emt 0:00:34]} 34. Kf2 {[%emt 0:00:07]} Kd8 {[%emt 0:01:44]} 35. Ke3 {[%emt 0:00:12]} Kc7 {[%emt 0:00:48]} 36. g3 {[%emt 0:00:10]} Ne7 {[%emt 0:03:07]} 37. Nb4 {[%emt 0:01:54]} Nec6 {[%emt 0:02:41]} 38. Nxc6 {[%emt 0:00:42]} Nxc6 {[%emt 0:00:14]} 39. Kd3 {[%emt 0:00:37]} Kd7 {[%emt 0:05:39]} 40. Kc3 {[%emt 0:00:53]} Kc7 {[%emt 0:01:22]} 41. Kd3 {[%emt 0:05:45]} Kb7 {[%emt 0:03:52]} 42. Kc3 {[%emt 0:01:23]} Na7 {[%emt 0:01:24]} 43. Nd4 {[%emt 0:06:31]} Nc6 {[%emt 0:08:29]} 44. Nb3 {[%emt 0:01:20]} a5 {[%emt 0:04:00]} 45. a4 {[%emt 0:01:50]} Ka6 {[%emt 0:00:34]} 46. Nd4 {[%emt 0:01:26]} Ne7 {[%emt 0:05:07] normal} 1/2-1/2

[Event "GER-ch Youth U14 2019"]
[Site "Willingen"]
[Date "2019.06.12"]
[Round "5.7"]
[White "Deutsch, Christoph"]
[Black "Arakelian, Aik"]
[Result "1/2-1/2"]
[ECO "B28"]
[WhiteElo "1937"]
[BlackElo "1911"]
[Annotator "NA"]
[PlyCount "94"]
[EventDate "2019.06.07"]
[EventType "swiss"]
[EventRounds "9"]
[EventCountry "GER"]
[SourceTitle "playchess.com"]
[Source "ChessBase"]
[SourceQuality "1"]
[TimeControl "40/5400+30:1800+30"]

1. e4 {[%emt 0:00:00]} c5 {[%emt 0:00:00]} 2. Nf3 {[%emt 0:00:00]} a6 {[%emt 0:00:12]} 3. c4 {[%emt 0:03:40]} Nc6 {[%emt 0:00:11]} 4. d4 {[%emt 0:02:45]} cxd4 {[%emt 0:00:41]} 5. Nxd4 {[%emt 0:00:07]} Nf6 {[%emt 0:00:09]} 6. Nc3 {[%emt 0:00:24]} e5 {[%emt 0:00:08]} 7. Nc2 {[%emt 0:02:10]} Bc5 {[%emt 0:02:41]} 8. Be2 {[%emt 0:03:06]} d6 {[%emt 0:01:15]} 9. O-O {[%emt 0:02:29]} h6 {[%emt 0:02:29]} 10. Qd3 {[%emt 0:02:32]} O-O {[%emt 0:02:02]} 11. Be3 {[%emt 0:01:13]} Be6 {[%emt 0:02:24]} 12. h3 {[%emt 0:08:01]} Rc8 {[%emt 0:07:46]} 13. b3 {[%emt 0:03:12]} Nd7 {[%emt 0:05:09]} 14. Bxc5 {[%emt 0:15:35]} Nxc5 {[%emt 0:02:52]} 15. Qd2 {[%emt 0:04:32]} f5 {[%emt 0:01:33]} 16. Rad1 {[%emt 0:04:56]} f4 {[%emt 0:07:33]} 17. Qxd6 {[%emt 0:05:13]} Qg5 {[%emt 0:05:37]} 18. Bg4 {[%emt 0:06:34]} Bxg4 {[%emt 0:01:42]} 19. hxg4 {[%emt 0:00:53]} b6 {[%emt 0:00:54]} 20. Qd5+ {[%emt 0:03:11]} Kh8 {[%emt 0:01:32]} 21. f3 {[%emt 0:01:05]} h5 {[%emt 0:06:37]} 22. gxh5 {[%emt 0:04:10]} Rf6 {[%emt 0:01:12]} 23. b4 {[%emt 0:02:01]} Ne7 {[%emt 0:09:55]} 24. Qd2 {[%emt 0:00:42]} Ne6 {[%emt 0:01:05]} 25. Nd5 {[%emt 0:01:12]} Rh6 {[%emt 0:03:16]} 26. Nxb6 {[%emt 0:01:31]} Rd8 {[%emt 0:01:31]} 27. Qe2 {[%emt 0:03:09]} Qxh5 {[%emt 0:08:29]} 28. Rxd8+ {[%emt 0:00:27]} Nxd8 {[%emt 0:00:01]} 29. Qd2 {[%emt 0:00:21]} Qh2+ {[%emt 0:03:48]} 30. Kf2 {[%emt 0:00:08]} Qg3+ {[%emt 0:00:28]} 31. Ke2 {[%emt 0:00:07]} Nf7 {[%emt 0:02:52]} 32. Nd5 {[%emt 0:00:49]} Rh2 {[%emt 0:01:00]} 33. Ne1 {[%emt 0:04:21]} Nc6 {[%emt 0:00:34]} 34. Kd1 {[%emt 0:00:18]} Nd6 {[%emt 0:01:24]} 35. Nb6 {[%emt 0:03:06]} Nd4 {[%emt 0:02:20]} 36. c5 {[%emt 0:00:44]} N6b5 {[%emt 0:04:32]} 37. Nc4 {[%emt 0:01:43]} Qg5 {[%emt 0:01:50]} 38. Rf2 {[%emt 0:01:04]} Rh1 {[%emt 0:02:56]} 39. Kc1 {[%emt 0:00:50]} Qe7 {[%emt 0:03:31]} 40. Kb2 {[%emt 0:00:49]} Qe6 {[%emt 0:02:04]} 41. Na5 {[%emt 0:34:19]} g5 {[%emt 0:04:08]} 42. Nb3 {[%emt 0:00:00]} Nxb3 {[%emt 0:02:15]} 43. axb3 {[%emt 0:00:00]} Nd4 {[%emt 0:00:06]} 44. Qc3 {[%emt 0:00:00]} Rxe1 {[%emt 0:00:12]} 45. Qxe1 {[%emt 0:00:00]} Qxb3+ {[%emt 0:00:04]} 46. Kc1 {[%emt 0:00:00]} Qa3+ {[%emt 0:00:27]} 47. Kb1 {[%emt 0:00:00]} Qd3+ {[%emt 0:01:57] normal} 1/2-1/2

[Event "GER-ch Youth U14 2019"]
[Site "Willingen"]
[Date "2019.06.12"]
[Round "5.8"]
[White "Hetzner, Hannes"]
[Black "Evering, Soeren"]
[Result "1-0"]
[ECO "C44"]
[WhiteElo "1996"]
[BlackElo "1879"]
[Annotator "NA"]
[PlyCount "53"]
[EventDate "2019.06.07"]
[EventType "swiss"]
[EventRounds "9"]
[EventCountry "GER"]
[SourceTitle "playchess.com"]
[Source "ChessBase"]
[SourceQuality "1"]
[TimeControl "40/5400+30:1800+30"]

1. e4 {[%emt 0:00:00]} e5 {[%emt 0:00:00]} 2. Nf3 {[%emt 0:00:00]} Nc6 {[%emt 0:00:00]} 3. d4 {[%emt 0:00:00]} exd4 {[%emt 0:00:00]} 4. Nxd4 {[%emt 0:00:00]} Bb4+ {[%emt 0:00:09]} 5. c3 {[%emt 0:01:11]} Bc5 {[%emt 0:00:13]} 6. Be3 {[%emt 0:01:05]} Bb6 {[%emt 0:00:22]} 7. Nf5 {[%emt 0:01:17]} Bxe3 {[%emt 0:01:47]} 8. Nxe3 {[%emt 0:05:53]} Nf6 {[%emt 0:02:23]} 9. f3 {[%emt 0:00:45]} O-O {[%emt 0:00:33]} 10. c4 {[%emt 0:00:43]} d6 {[%emt 0:00:44]} 11. Nc3 {[%emt 0:00:34]} Bd7 {[%emt 0:02:02]} 12. Be2 {[%emt 0:01:53]} a6 {[%emt 0:02:14]} 13. O-O {[%emt 0:01:57]} Re8 {[%emt 0:05:39]} 14. Qd2 {[%emt 0:05:22]} Ne5 {[%emt 0:01:39]} 15. a4 {[%emt 0:04:28]} Rb8 {[%emt 0:09:23]} 16. a5 {[%emt 0:04:03]} Ng6 {[%emt 0:03:15]} 17. Rfd1 {[%emt 0:15:37]} Nf4 {[%emt 0:15:46]} 18. Bf1 {[%emt 0:01:42]} N6h5 {[%emt 0:06:01]} 19. Ned5 {[%emt 0:08:42]} Qg5 {[%emt 0:18:54]} 20. g3 {[%emt 0:14:30]} Nxg3 {[%emt 0:14:39]} 21. hxg3 {[%emt 0:00:24]} Qxg3+ {[%emt 0:00:16]} 22. Bg2 {[%emt 0:00:17]} Nh3+ {[%emt 0:01:37]} 23. Kf1 {[%emt 0:00:48]} Qh2 {[%emt 0:01:48]} 24. Bxh3 {[%emt 0:03:50]} Bxh3+ {[%emt 0:01:12]} 25. Ke1 {[%emt 0:00:07]} Qg1+ {[%emt 0:02:27]} 26. Ke2 {[%emt 0:00:11]} Qg2+ {[%emt 0:00:48]} 27. Ke3 {[%emt 0:00:26] normal} 1-0

[Event "GER-ch Youth U14 2019"]
[Site "Willingen"]
[Date "2019.06.12"]
[Round "5.10"]
[White "Farokhi, Keyvan"]
[Black "Simukov, Erik"]
[Result "1/2-1/2"]
[ECO "C44"]
[WhiteElo "1963"]
[BlackElo "1904"]
[Annotator "NA"]
[PlyCount "47"]
[EventDate "2019.06.07"]
[EventType "swiss"]
[EventRounds "9"]
[EventCountry "GER"]
[SourceTitle "playchess.com"]
[Source "ChessBase"]
[SourceQuality "1"]
[TimeControl "40/5400+30:1800+30"]

1. e4 {[%emt 0:00:00]} e5 {[%emt 0:00:00]} 2. Nf3 {[%emt 0:00:00]} Nc6 {[%emt 0:00:00]} 3. c3 {[%emt 0:00:00]} d5 {[%emt 0:00:30]} 4. Qa4 {[%emt 0:00:03]} Bd7 {[%emt 0:25:18]} 5. exd5 {[%emt 0:00:27]} Nd4 {[%emt 0:00:15]} 6. Qd1 {[%emt 0:00:01]} Nxf3+ {[%emt 0:00:13]} 7. Qxf3 {[%emt 0:00:01]} Nf6 {[%emt 0:00:22]} 8. Bc4 {[%emt 0:00:16]} Bd6 {[%emt 0:05:24]} 9. d3 {[%emt 0:04:04]} Bg4 {[%emt 0:06:10]} 10. Qg3 {[%emt 0:04:28]} Qd7 {[%emt 0:09:22]} 11. h3 {[%emt 0:05:33]} e4 {[%emt 0:03:44]} 12. Qe3 {[%emt 0:00:29]} Bf5 {[%emt 0:02:23]} 13. dxe4 {[%emt 0:00:22]} O-O {[%emt 0:00:25]} 14. Nd2 {[%emt 0:01:24]} Nxe4 {[%emt 0:01:50]} 15. Nxe4 {[%emt 0:02:19]} Bxe4 {[%emt 0:00:06]} 16. O-O {[%emt 0:01:18]} Rfe8 {[%emt 0:00:17]} 17. Qg5 {[%emt 0:00:46]} Re5 {[%emt 0:02:07]} 18. Qg4 {[%emt 0:00:57]} Qxg4 {[%emt 0:07:21]} 19. hxg4 {[%emt 0:01:54]} Bxd5 {[%emt 0:03:33]} 20. Bxd5 {[%emt 0:00:09]} Rxd5 {[%emt 0:00:05]} 21. Be3 {[%emt 0:00:33]} Rd8 {[%emt 0:01:40]} 22. Rfe1 {[%emt 0:02:43]} a6 {[%emt 0:10:01]} 23. Kf1 {[%emt 0:01:08]} h6 {[%emt 0:05:48]} 24. c4 {[%emt 0:06:16] normal} 1/2-1/2